[Event "*** Titled Tuesday Blitz"]
[Site "Chess.com"]
[Date "2021.03.30"]
[Round "6"]
[White "Onischuk_V"]
[Black "Leonid_Starozhilov"]
[Result "1/2-1/2"]
[WhiteElo "2883"]
[BlackElo "2716"]
[TimeControl "180+1"]
[EndTime "11:07:29 PDT"]
[Termination "Game drawn - insufficient material"]

1. Nf3 {[%clk 0:03:00.9]} 1... Nf6 {[%clk 0:03:00]} 2. g3 {[%clk 0:03:01.5]}
2... g6 {[%clk 0:03:00.4]} 3. Bg2 {[%clk 0:03:02]} 3... Bg7 {[%clk 0:03:01.1]}
4. O-O {[%clk 0:03:02.5]} 4... O-O {[%clk 0:03:02]} 5. d3 {[%clk 0:03:01.2]}
5... d6 {[%clk 0:03:02.9]} 6. c4 {[%clk 0:03:01]} 6... c6 {[%clk 0:03:01]} 7.
Nc3 {[%clk 0:03:01.2]} 7... a6 {[%clk 0:02:59.9]} 8. Rb1 {[%clk 0:02:59.2]} 8...
d5 {[%clk 0:03:00.1]} 9. Qc2 {[%clk 0:02:51.9]} 9... b5 {[%clk 0:02:51]} 10. b4
{[%clk 0:02:48.2]} 10... bxc4 {[%clk 0:02:48.9]} 11. dxc4 {[%clk 0:02:48]} 11...
Bf5 {[%clk 0:02:48.9]} 12. Qb3 {[%clk 0:02:40.7]} 12... Bxb1 {[%clk 0:02:48.1]}
13. Qxb1 {[%clk 0:02:40.8]} 13... e6 {[%clk 0:02:37.5]} 14. Rd1 {[%clk
0:02:39.2]} 14... Nbd7 {[%clk 0:02:32.3]} 15. Nd4 {[%clk 0:02:38.6]} 15... Ne5
{[%clk 0:02:30.9]} 16. c5 {[%clk 0:02:32.6]} 16... Qd7 {[%clk 0:02:24]} 17. e4
{[%clk 0:02:27]} 17... Qb7 {[%clk 0:02:05]} 18. a3 {[%clk 0:02:18.4]} 18... Rfc8
{[%clk 0:01:57.3]} 19. Nb3 {[%clk 0:02:10.6]} 19... Nc4 {[%clk 0:01:35.9]} 20.
exd5 {[%clk 0:01:59.2]} 20... exd5 {[%clk 0:01:36.8]} 21. Bg5 {[%clk 0:01:55.9]}
21... Nxa3 {[%clk 0:01:31.2]} 22. Qd3 {[%clk 0:01:11]} 22... Qxb4 {[%clk
0:01:31.2]} 23. Nd4 {[%clk 0:01:11]} 23... Qxc5 {[%clk 0:01:25.1]} 24. Na4
{[%clk 0:01:10.2]} 24... Qf8 {[%clk 0:01:24.3]} 25. Nb6 {[%clk 0:01:08.5]} 25...
Nc4 {[%clk 0:01:19.8]} 26. Nxa8 {[%clk 0:01:08.3]} 26... Nb2 {[%clk 0:01:10.7]}
27. Qc2 {[%clk 0:01:06.5]} 27... Nxd1 {[%clk 0:01:10.8]} 28. Nb6 {[%clk
0:01:05]} 28... Rb8 {[%clk 0:00:59.6]} 29. Bxf6 {[%clk 0:01:04.6]} 29... Rxb6
{[%clk 0:00:44.4]} 30. Bxg7 {[%clk 0:01:02.9]} 30... Kxg7 {[%clk 0:00:45]} 31.
Qxd1 {[%clk 0:01:01]} 31... Qb4 {[%clk 0:00:43.2]} 32. Bf1 {[%clk 0:00:59.4]}
32... Qb1 {[%clk 0:00:25.9]} 33. Qd2 {[%clk 0:00:54.2]} 33... Qe4 {[%clk
0:00:23.6]} 34. Qc3 {[%clk 0:00:44.2]} 34... Qe5 {[%clk 0:00:14.4]} 35. Qc5
{[%clk 0:00:39]} 35... Rb1 {[%clk 0:00:11.1]} 36. Nxc6 {[%clk 0:00:29.9]} 36...
Qe2 {[%clk 0:00:07.1]} 37. Qd4+ {[%clk 0:00:15]} 37... f6 {[%clk 0:00:07.2]} 38.
Qa7+ {[%clk 0:00:09]} 38... Kh6 {[%clk 0:00:07.8]} 39. Qe3+ {[%clk 0:00:08.8]}
39... Qxe3 {[%clk 0:00:08.3]} 40. fxe3 {[%clk 0:00:09.3]} 40... Rb6 {[%clk
0:00:07.7]} 41. Na5 {[%clk 0:00:08.6]} 41... Re6 {[%clk 0:00:06.6]} 42. Kf2
{[%clk 0:00:08.5]} 42... Kg7 {[%clk 0:00:06.8]} 43. Bd3 {[%clk 0:00:08.1]} 43...
Rb6 {[%clk 0:00:06.6]} 44. Kf3 {[%clk 0:00:07.3]} 44... h5 {[%clk 0:00:05.8]}
45. h4 {[%clk 0:00:07.5]} 45... g5 {[%clk 0:00:05.6]} 46. g4 {[%clk 0:00:04.5]}
46... hxg4+ {[%clk 0:00:05.5]} 47. Kxg4 {[%clk 0:00:04.6]} 47... Rb4+ {[%clk
0:00:05.4]} 48. Kf5 {[%clk 0:00:04.8]} 48... Rxh4 {[%clk 0:00:05.6]} 49. Nc6
{[%clk 0:00:04.7]} 49... Rh3 {[%clk 0:00:05.4]} 50. Bxa6 {[%clk 0:00:03.5]}
50... Rxe3 {[%clk 0:00:05.1]} 51. Kg4 {[%clk 0:00:03.1]} 51... Re4+ {[%clk
0:00:05]} 52. Kf3 {[%clk 0:00:03.2]} 52... Rf4+ {[%clk 0:00:05.1]} 53. Kg3
{[%clk 0:00:02.8]} 53... d4 {[%clk 0:00:06]} 54. Bd3 {[%clk 0:00:02.5]} 54...
Kf7 {[%clk 0:00:06.3]} 55. Nb4 {[%clk 0:00:02.5]} 55... Ke6 {[%clk 0:00:06.3]}
56. Nc2 {[%clk 0:00:02.9]} 56... Ke5 {[%clk 0:00:06.5]} 57. Ne1 {[%clk
0:00:03.1]} 57... f5 {[%clk 0:00:06.8]} 58. Ng2 {[%clk 0:00:03]} 58... Kf6
{[%clk 0:00:07.5]} 59. Nxf4 {[%clk 0:00:03]} 59... gxf4+ {[%clk 0:00:07]} 60.
Kxf4 {[%clk 0:00:03.6]} 60... Ke6 {[%clk 0:00:07.9]} 61. Bxf5+ {[%clk
0:00:03.9]} 61... Kd5 {[%clk 0:00:08.8]} 62. Bd3 {[%clk 0:00:04.4]} 62... Kc5
{[%clk 0:00:09.7]} 63. Ke4 {[%clk 0:00:04.9]} 63... Kb4 {[%clk 0:00:10.6]} 64.
Kxd4 {[%clk 0:00:05.6]} 1/2-1/2

[Event "*** Titled Tuesday Blitz"]
[Site "Chess.com"]
[Date "2021.03.30"]
[Round "6"]
[White "Trickov"]
[Black "HrvojeZagreb"]
[Result "0-1"]
[WhiteElo "2403"]
[BlackElo "2237"]
[TimeControl "180+1"]
[EndTime "11:07:29 PDT"]
[Termination "HrvojeZagreb won by resignation"]

1. d4 {[%clk 0:02:57.4]} 1... e6 {[%clk 0:03:00]} 2. Nf3 {[%clk 0:02:56.8]} 2...
f5 {[%clk 0:03:00.1]} 3. g3 {[%clk 0:02:55.6]} 3... Nf6 {[%clk 0:03:00.2]} 4.
Bg2 {[%clk 0:02:55.9]} 4... Be7 {[%clk 0:02:59]} 5. O-O {[%clk 0:02:56.4]} 5...
O-O {[%clk 0:02:59.3]} 6. c4 {[%clk 0:02:56.9]} 6... d6 {[%clk 0:02:59.4]} 7.
Nc3 {[%clk 0:02:56.8]} 7... Qe8 {[%clk 0:02:59]} 8. Qb3 {[%clk 0:02:56.3]} 8...
Ne4 {[%clk 0:02:56.4]} 9. Nxe4 {[%clk 0:02:47.7]} 9... fxe4 {[%clk 0:02:57.3]}
10. Ng5 {[%clk 0:02:47.5]} 10... Bxg5 {[%clk 0:02:53.3]} 11. Bxg5 {[%clk
0:02:46.2]} 11... Qg6 {[%clk 0:02:52.6]} 12. Be3 {[%clk 0:02:41]} 12... c6
{[%clk 0:02:46.1]} 13. d5 {[%clk 0:02:35.3]} 13... exd5 {[%clk 0:02:36.8]} 14.
cxd5 {[%clk 0:02:34.8]} 14... c5 {[%clk 0:02:31]} 15. Rac1 {[%clk 0:02:26.2]}
15... b6 {[%clk 0:02:23.1]} 16. Bf4 {[%clk 0:02:08.3]} 16... Na6 {[%clk
0:01:59.3]} 17. Rc4 {[%clk 0:01:58.1]} 17... Bf5 {[%clk 0:01:27.9]} 18. Qa4
{[%clk 0:01:47.1]} 18... Nb4 {[%clk 0:01:21.1]} 19. a3 {[%clk 0:01:38.1]} 19...
Nxd5 {[%clk 0:01:18.2]} 20. Bc1 {[%clk 0:01:21]} 20... Nf6 {[%clk 0:00:49.5]}
21. b4 {[%clk 0:01:03.4]} 21... Bd7 {[%clk 0:00:31.7]} 22. Qc2 {[%clk
0:00:57.4]} 22... Bb5 {[%clk 0:00:29.7]} 23. Bxe4 {[%clk 0:00:43.5]} 23... Nxe4
{[%clk 0:00:26.4]} 24. Rxe4 {[%clk 0:00:42.3]} 24... Rae8 {[%clk 0:00:25.4]} 25.
f3 {[%clk 0:00:33.4]} 25... d5 {[%clk 0:00:17]} 26. Qa2 {[%clk 0:00:32.2]} 26...
Bc4 {[%clk 0:00:13.5]} 27. Rxc4 {[%clk 0:00:30.6]} 27... dxc4 {[%clk 0:00:12.9]}
28. Qxc4+ {[%clk 0:00:30.6]} 28... Qe6 {[%clk 0:00:12.9]} 29. Qxe6+ {[%clk
0:00:28.5]} 29... Rxe6 {[%clk 0:00:13.8]} 30. bxc5 {[%clk 0:00:28.5]} 30... bxc5
{[%clk 0:00:14.6]} 31. e4 {[%clk 0:00:27.9]} 31... Rd8 {[%clk 0:00:13.4]} 32.
Be3 {[%clk 0:00:24.8]} 32... Rc6 {[%clk 0:00:12.2]} 33. e5 {[%clk 0:00:18]}
33... a6 {[%clk 0:00:11.3]} 34. f4 {[%clk 0:00:17.8]} 34... g6 {[%clk
0:00:11.7]} 35. Kf2 {[%clk 0:00:17.4]} 35... Rd3 {[%clk 0:00:10.7]} 36. Rb1
{[%clk 0:00:16.6]} 36... Rxa3 {[%clk 0:00:09.4]} 37. Rb8+ {[%clk 0:00:16.4]}
37... Kf7 {[%clk 0:00:09.7]} 38. Rb7+ {[%clk 0:00:16.4]} 38... Kg8 {[%clk
0:00:09.8]} 39. Rb8+ {[%clk 0:00:16.4]} 39... Kf7 {[%clk 0:00:10.2]} 40. Rb7+
{[%clk 0:00:16.7]} 40... Ke6 {[%clk 0:00:10.5]} 41. Rxh7 {[%clk 0:00:15.9]}
41... c4 {[%clk 0:00:07]} 42. Rg7 {[%clk 0:00:15.7]} 42... Kf5 {[%clk
0:00:06.4]} 43. Rf7+ {[%clk 0:00:15.7]} 43... Ke4 {[%clk 0:00:06.6]} 44. Ba7
{[%clk 0:00:08.5]} 44... Ra2+ {[%clk 0:00:06.8]} 45. Ke1 {[%clk 0:00:08.2]}
45... c3 {[%clk 0:00:07.1]} 46. Rd7 {[%clk 0:00:07.1]} 46... c2 {[%clk
0:00:04.3]} 47. Rd4+ {[%clk 0:00:07.1]} 47... Kf3 {[%clk 0:00:03.8]} 48. Rd3+
{[%clk 0:00:06.5]} 48... Kg4 {[%clk 0:00:04]} 49. Be3 {[%clk 0:00:05.5]} 49...
c1=Q+ {[%clk 0:00:02.8]} 50. Bxc1 {[%clk 0:00:05.8]} 50... Rxc1+ {[%clk
0:00:03.6]} 51. Rd1 {[%clk 0:00:06.4]} 51... Rxd1+ {[%clk 0:00:04]} 52. Kxd1
{[%clk 0:00:06.7]} 52... Rxh2 {[%clk 0:00:02.9]} 53. e6 {[%clk 0:00:06]} 53...
Rh8 {[%clk 0:00:03.4]} 54. Ke2 {[%clk 0:00:05.2]} 54... Kf5 {[%clk 0:00:04.3]}
55. Ke3 {[%clk 0:00:05.3]} 55... Kxe6 {[%clk 0:00:04.3]} 56. g4 {[%clk
0:00:05.9]} 56... Rh4 {[%clk 0:00:04.5]} 57. Kf3 {[%clk 0:00:06]} 57... Rh3+
{[%clk 0:00:04.9]} 58. Kg2 {[%clk 0:00:06.1]} 58... Ra3 {[%clk 0:00:05.8]} 0-1

[Event "*** Titled Tuesday Blitz"]
[Site "Chess.com"]
[Date "2021.03.30"]
[Round "6"]
[White "Rital44"]
[Black "iamnotIM"]
[Result "0-1"]
[WhiteElo "2438"]
[BlackElo "2594"]
[TimeControl "180+1"]
[EndTime "11:07:30 PDT"]
[Termination "iamnotIM won by resignation"]

1. e4 {[%clk 0:03:00.9]} 1... c5 {[%clk 0:02:59.5]} 2. Nf3 {[%clk 0:03:00.9]}
2... d6 {[%clk 0:02:59.4]} 3. d4 {[%clk 0:02:59.7]} 3... cxd4 {[%clk 0:03:00.3]}
4. Nxd4 {[%clk 0:03:00]} 4... Nf6 {[%clk 0:03:00.8]} 5. Nc3 {[%clk 0:02:59.2]}
5... g6 {[%clk 0:03:00.8]} 6. Be3 {[%clk 0:02:58.6]} 6... Bg7 {[%clk 0:03:01.1]}
7. f3 {[%clk 0:02:58.7]} 7... Nc6 {[%clk 0:03:01.7]} 8. Qd2 {[%clk 0:02:59.1]}
8... O-O {[%clk 0:03:01.9]} 9. O-O-O {[%clk 0:02:59.4]} 9... d5 {[%clk
0:03:02.2]} 10. Nxc6 {[%clk 0:02:55.5]} 10... bxc6 {[%clk 0:03:02.2]} 11. Kb1
{[%clk 0:02:54.5]} 11... Rb8 {[%clk 0:02:31.5]} 12. e5 {[%clk 0:02:23.2]} 12...
Nd7 {[%clk 0:02:20]} 13. f4 {[%clk 0:02:23.1]} 13... Qa5 {[%clk 0:02:02.1]} 14.
h4 {[%clk 0:02:16.1]} 14... Qb4 {[%clk 0:01:23.1]} 15. b3 {[%clk 0:02:12]} 15...
a5 {[%clk 0:01:18.3]} 16. Ne2 {[%clk 0:01:52.8]} 16... Qxd2 {[%clk 0:01:14.9]}
17. Rxd2 {[%clk 0:01:51.5]} 17... e6 {[%clk 0:01:09.2]} 18. h5 {[%clk
0:01:47.8]} 18... a4 {[%clk 0:01:08.9]} 19. g4 {[%clk 0:01:47.2]} 19... axb3
{[%clk 0:01:06.9]} 20. axb3 {[%clk 0:01:48.1]} 20... Ba6 {[%clk 0:01:01.7]} 21.
h6 {[%clk 0:01:21.9]} 21... Bh8 {[%clk 0:01:00.4]} 22. g5 {[%clk 0:01:22.4]}
22... c5 {[%clk 0:00:45.6]} 23. Nc1 {[%clk 0:01:21.2]} 23... Ra8 {[%clk
0:00:42.5]} 24. Bxa6 {[%clk 0:01:17.1]} 24... Rxa6 {[%clk 0:00:43.4]} 25. c4
{[%clk 0:01:15.8]} 25... d4 {[%clk 0:00:34.9]} 26. Bf2 {[%clk 0:01:11.4]} 26...
Rfa8 {[%clk 0:00:33.4]} 27. Ra2 {[%clk 0:01:10.8]} 27... Rxa2 {[%clk 0:00:24.9]}
28. Nxa2 {[%clk 0:01:11.7]} 28... Nxe5 {[%clk 0:00:20]} 29. fxe5 {[%clk
0:01:10.2]} 29... Bxe5 {[%clk 0:00:20.9]} 30. Re1 {[%clk 0:00:48.5]} 30... Bf4
{[%clk 0:00:19.6]} 31. Nc1 {[%clk 0:00:48.5]} 31... Bxg5 {[%clk 0:00:17.1]} 32.
Nd3 {[%clk 0:00:48.4]} 32... Be7 {[%clk 0:00:15.8]} 33. Kb2 {[%clk 0:00:44.1]}
33... Bf8 {[%clk 0:00:13.1]} 34. Ra1 {[%clk 0:00:42.1]} 34... Rxa1 {[%clk
0:00:12.5]} 35. Kxa1 {[%clk 0:00:42.8]} 35... f6 {[%clk 0:00:13.4]} 36. b4
{[%clk 0:00:41.5]} 36... cxb4 {[%clk 0:00:13.1]} 37. Bxd4 {[%clk 0:00:41.6]}
37... e5 {[%clk 0:00:13.6]} 38. Be3 {[%clk 0:00:41.6]} 38... Kf7 {[%clk
0:00:11.9]} 39. Kb2 {[%clk 0:00:40.8]} 39... e4 {[%clk 0:00:10.4]} 40. Nf4
{[%clk 0:00:38.4]} 40... g5 {[%clk 0:00:08.1]} 41. Nd5 {[%clk 0:00:36.3]} 41...
Bxh6 {[%clk 0:00:08.6]} 42. c5 {[%clk 0:00:35.3]} 42... Ke6 {[%clk 0:00:06.8]}
43. c6 {[%clk 0:00:32.7]} 43... Kd6 {[%clk 0:00:06.9]} 44. c7 {[%clk 0:00:32.1]}
44... Kd7 {[%clk 0:00:07.2]} 45. Bb6 {[%clk 0:00:20.1]} 45... Bf8 {[%clk
0:00:06.6]} 46. Nxf6+ {[%clk 0:00:19.8]} 46... Kc8 {[%clk 0:00:06.2]} 47. Nxe4
{[%clk 0:00:20.1]} 47... Be7 {[%clk 0:00:05.4]} 48. Ng3 {[%clk 0:00:16.9]} 48...
Bd6 {[%clk 0:00:04.7]} 49. Nf5 {[%clk 0:00:15.9]} 49... Bxc7 {[%clk 0:00:04.9]}
50. Be3 {[%clk 0:00:16.6]} 50... g4 {[%clk 0:00:03.5]} 51. Kb3 {[%clk
0:00:13.8]} 51... Kd7 {[%clk 0:00:04]} 52. Kxb4 {[%clk 0:00:13.3]} 52... Ke6
{[%clk 0:00:04.4]} 53. Nd4+ {[%clk 0:00:12.2]} 53... Kd5 {[%clk 0:00:04.8]} 54.
Kc3 {[%clk 0:00:12]} 54... Ke4 {[%clk 0:00:04.8]} 55. Bg1 {[%clk 0:00:08.9]}
55... Be5 {[%clk 0:00:04.9]} 56. Kc4 {[%clk 0:00:08.8]} 56... Bxd4 {[%clk
0:00:05]} 57. Bxd4 {[%clk 0:00:09.4]} 57... h5 {[%clk 0:00:05.2]} 58. Bf2 {[%clk
0:00:09.3]} 58... Kf3 {[%clk 0:00:05.3]} 59. Bg1 {[%clk 0:00:08.4]} 59... h4
{[%clk 0:00:04.8]} 60. Kd3 {[%clk 0:00:08.9]} 60... g3 {[%clk 0:00:05]} 61. Kd2
{[%clk 0:00:09.2]} 61... h3 {[%clk 0:00:05.6]} 62. Ke1 {[%clk 0:00:09.8]} 62...
h2 {[%clk 0:00:06]} 0-1

[Event "*** Titled Tuesday Blitz"]
[Site "Chess.com"]
[Date "2021.03.30"]
[Round "6"]
[White "politeplayer"]
[Black "Blitzking642"]
[Result "0-1"]
[WhiteElo "2219"]
[BlackElo "2433"]
[TimeControl "180+1"]
[EndTime "11:07:40 PDT"]
[Termination "Blitzking642 won by resignation"]

1. e4 {[%clk 0:03:00.5]} 1... e6 {[%clk 0:03:00.1]} 2. d4 {[%clk 0:02:58.6]}
2... d5 {[%clk 0:03:00.2]} 3. Nc3 {[%clk 0:02:57.7]} 3... Bb4 {[%clk 0:02:59.9]}
4. e5 {[%clk 0:02:56.1]} 4... c5 {[%clk 0:02:59.4]} 5. a3 {[%clk 0:02:53.8]}
5... Bxc3+ {[%clk 0:02:58.3]} 6. bxc3 {[%clk 0:02:53.7]} 6... Ne7 {[%clk
0:02:57]} 7. Nf3 {[%clk 0:02:50.8]} 7... Qc7 {[%clk 0:02:54.5]} 8. a4 {[%clk
0:02:49.6]} 8... Qa5 {[%clk 0:02:40.8]} 9. Bb5+ {[%clk 0:02:27.5]} 9... Bd7
{[%clk 0:02:38.8]} 10. Bxd7+ {[%clk 0:02:24.3]} 10... Nxd7 {[%clk 0:02:37.7]}
11. O-O {[%clk 0:02:24.6]} 11... O-O {[%clk 0:02:28.5]} 12. Rb1 {[%clk
0:02:17.7]} 12... b6 {[%clk 0:02:19.5]} 13. Qd3 {[%clk 0:01:36.5]} 13... Qxa4
{[%clk 0:02:13.3]} 14. Ng5 {[%clk 0:01:28]} 14... Ng6 {[%clk 0:02:01.3]} 15. h4
{[%clk 0:01:06.8]} 15... c4 {[%clk 0:01:42.5]} 16. Qe2 {[%clk 0:00:57]} 16... h6
{[%clk 0:01:40.4]} 17. h5 {[%clk 0:00:48.2]} 17... Ne7 {[%clk 0:01:39.3]} 18.
Nh3 {[%clk 0:00:44.4]} 18... Qc6 {[%clk 0:01:29.6]} 19. Ba3 {[%clk 0:00:37.3]}
19... Rfe8 {[%clk 0:01:23.2]} 20. Bxe7 {[%clk 0:00:36.3]} 20... Rxe7 {[%clk
0:01:23.1]} 21. Nf4 {[%clk 0:00:34.7]} 21... a5 {[%clk 0:01:12.2]} 22. Qg4
{[%clk 0:00:32.1]} 22... a4 {[%clk 0:01:08.9]} 23. Ra1 {[%clk 0:00:24.8]} 23...
a3 {[%clk 0:01:08.1]} 24. Ra2 {[%clk 0:00:24.6]} 24... Nf8 {[%clk 0:00:57.6]}
25. Rfa1 {[%clk 0:00:23.6]} 25... Rea7 {[%clk 0:00:57.6]} 26. Ne2 {[%clk
0:00:20.4]} 26... Qa4 {[%clk 0:00:30.6]} 27. f4 {[%clk 0:00:20.3]} 27... Qd7
{[%clk 0:00:28.6]} 28. Ng3 {[%clk 0:00:20]} 28... b5 {[%clk 0:00:25.8]} 29. f5
{[%clk 0:00:19.7]} 29... Kh8 {[%clk 0:00:15.9]} 30. f6 {[%clk 0:00:18.4]} 30...
g5 {[%clk 0:00:13.4]} 31. hxg6 {[%clk 0:00:14.3]} 31... fxg6 {[%clk 0:00:11.8]}
32. Qh4 {[%clk 0:00:12.4]} 32... Qh7 {[%clk 0:00:09]} 33. Rf1 {[%clk 0:00:12]}
33... g5 {[%clk 0:00:08.8]} 34. Qh5 {[%clk 0:00:11.5]} 34... Ng6 {[%clk
0:00:09.4]} 35. f7 {[%clk 0:00:11.4]} 35... Nf4 {[%clk 0:00:09.1]} 36. Rxf4
{[%clk 0:00:09.5]} 36... gxf4 {[%clk 0:00:08.6]} 37. Ne2 {[%clk 0:00:08.7]}
37... Rxf7 {[%clk 0:00:08.3]} 38. Qh3 {[%clk 0:00:04.8]} 38... Qf5 {[%clk
0:00:06.6]} 39. Qxh6+ {[%clk 0:00:04.3]} 39... Rh7 {[%clk 0:00:07.1]} 40. Qf6+
{[%clk 0:00:03.1]} 40... Qxf6 {[%clk 0:00:06.9]} 41. exf6 {[%clk 0:00:03.5]}
41... Rf7 {[%clk 0:00:05.4]} 42. Nxf4 {[%clk 0:00:03.2]} 42... Rxf6 {[%clk
0:00:05.9]} 43. g3 {[%clk 0:00:03.7]} 43... Kh7 {[%clk 0:00:03.3]} 44. Kf2
{[%clk 0:00:04.1]} 44... Kh6 {[%clk 0:00:02.8]} 45. Ra1 {[%clk 0:00:04.5]} 45...
Kg5 {[%clk 0:00:02.8]} 46. Rh1 {[%clk 0:00:05]} 46... Rxf4+ {[%clk 0:00:01.9]}
47. gxf4+ {[%clk 0:00:04.9]} 47... Kxf4 {[%clk 0:00:02.8]} 48. Rh4+ {[%clk
0:00:05.2]} 48... Kg5 {[%clk 0:00:02.5]} 49. Rh1 {[%clk 0:00:05.1]} 49... a2
{[%clk 0:00:03.4]} 50. Rg1+ {[%clk 0:00:05.6]} 50... Kf4 {[%clk 0:00:02.8]} 51.
Ra1 {[%clk 0:00:06]} 51... Ke4 {[%clk 0:00:02.9]} 52. Ke2 {[%clk 0:00:06.5]}
52... e5 {[%clk 0:00:03.6]} 53. Kd2 {[%clk 0:00:07]} 53... exd4 {[%clk
0:00:03.6]} 54. cxd4 {[%clk 0:00:07.5]} 54... Kxd4 {[%clk 0:00:04.1]} 55. c3+
{[%clk 0:00:08.1]} 55... Kc5 {[%clk 0:00:04.7]} 56. Kc2 {[%clk 0:00:08.8]} 56...
d4 {[%clk 0:00:05]} 57. Kb2 {[%clk 0:00:09.2]} 57... dxc3+ {[%clk 0:00:05]} 58.
Kxc3 {[%clk 0:00:09.5]} 58... b4+ {[%clk 0:00:05.9]} 59. Kb2 {[%clk 0:00:09.7]}
59... c3+ {[%clk 0:00:05.8]} 60. Kb3 {[%clk 0:00:09.8]} 60... Ra3+ {[%clk
0:00:06]} 61. Kc2 {[%clk 0:00:09.5]} 61... Kc4 {[%clk 0:00:06.6]} 62. Kc1 {[%clk
0:00:06.6]} 62... b3 {[%clk 0:00:06.3]} 63. Kd1 {[%clk 0:00:05.2]} 63... b2
{[%clk 0:00:06.4]} 64. Kc2 {[%clk 0:00:05.7]} 64... Ra4 {[%clk 0:00:05.7]} 65.
Rf1 {[%clk 0:00:03.3]} 65... b1=Q+ {[%clk 0:00:05.7]} 0-1

[Event "*** Titled Tuesday Blitz"]
[Site "Chess.com"]
[Date "2021.03.30"]
[Round "6"]
[White "Duhless"]
[Black "GMKrikor"]
[Result "1/2-1/2"]
[WhiteElo "3047"]
[BlackElo "2847"]
[TimeControl "180+1"]
[EndTime "11:07:42 PDT"]
[Termination "Game drawn by repetition"]

1. d4 {[%clk 0:03:00.9]} 1... Nf6 {[%clk 0:02:59.7]} 2. c4 {[%clk 0:03:00.5]}
2... g6 {[%clk 0:02:59.8]} 3. Nc3 {[%clk 0:02:59.8]} 3... d5 {[%clk 0:03:00.1]}
4. cxd5 {[%clk 0:02:58.3]} 4... Nxd5 {[%clk 0:02:59.7]} 5. e4 {[%clk 0:02:58.3]}
5... Nxc3 {[%clk 0:03:00]} 6. bxc3 {[%clk 0:02:59.2]} 6... Bg7 {[%clk
0:03:00.6]} 7. Nf3 {[%clk 0:02:58]} 7... c5 {[%clk 0:03:00.4]} 8. Bb5+ {[%clk
0:02:58]} 8... Nc6 {[%clk 0:02:58.1]} 9. Rb1 {[%clk 0:02:58.4]} 9... O-O {[%clk
0:02:57.1]} 10. d5 {[%clk 0:02:58.5]} 10... Ne5 {[%clk 0:02:42.8]} 11. O-O
{[%clk 0:02:57.3]} 11... Bg4 {[%clk 0:02:39.7]} 12. Be2 {[%clk 0:02:56.1]} 12...
Bxf3 {[%clk 0:02:37.1]} 13. Bxf3 {[%clk 0:02:53.4]} 13... Nxf3+ {[%clk
0:02:19.4]} 14. Qxf3 {[%clk 0:02:54.3]} 14... b6 {[%clk 0:02:20.1]} 15. c4
{[%clk 0:02:52.8]} 15... e6 {[%clk 0:02:20.7]} 16. Bf4 {[%clk 0:02:48.3]} 16...
exd5 {[%clk 0:02:20.3]} 17. exd5 {[%clk 0:02:45.5]} 17... Qd7 {[%clk 0:02:18]}
18. Rfe1 {[%clk 0:02:44.5]} 18... Rfe8 {[%clk 0:02:17.8]} 19. g3 {[%clk
0:02:40.4]} 19... Bd4 {[%clk 0:02:02.3]} 20. Kg2 {[%clk 0:02:39.3]} 20... h5
{[%clk 0:01:32.8]} 21. d6 {[%clk 0:02:30.9]} 21... Rac8 {[%clk 0:01:07.4]} 22.
Qd5 {[%clk 0:02:28.7]} 22... h4 {[%clk 0:00:54.8]} 23. gxh4 {[%clk 0:02:24.7]}
23... Qg4+ {[%clk 0:00:43]} 24. Bg3 {[%clk 0:02:23.8]} 24... Rcd8 {[%clk
0:00:43.2]} 25. a4 {[%clk 0:02:02.3]} 25... Re6 {[%clk 0:00:34.1]} 26. a5 {[%clk
0:01:28.6]} 26... Rexd6 {[%clk 0:00:26.7]} 27. Qe4 {[%clk 0:01:23.4]} 27...
Qxe4+ {[%clk 0:00:24.2]} 28. Rxe4 {[%clk 0:01:24.3]} 28... bxa5 {[%clk
0:00:19.5]} 29. Bxd6 {[%clk 0:01:20.6]} 29... Rxd6 {[%clk 0:00:20.4]} 30. Rb7
{[%clk 0:01:17.5]} 30... Ra6 {[%clk 0:00:19.8]} 31. Re8+ {[%clk 0:01:04.5]}
31... Kg7 {[%clk 0:00:19.5]} 32. Ree7 {[%clk 0:01:05.4]} 32... Rf6 {[%clk
0:00:19.7]} 33. f3 {[%clk 0:01:05.2]} 33... a6 {[%clk 0:00:11.2]} 34. Ra7 {[%clk
0:01:03.7]} 34... a4 {[%clk 0:00:10.6]} 35. Re2 {[%clk 0:00:38.8]} 35... a3
{[%clk 0:00:10.9]} 36. Rb7 {[%clk 0:00:37.5]} 36... Bb2 {[%clk 0:00:10.6]} 37.
Rexb2 {[%clk 0:00:34.2]} 37... axb2 {[%clk 0:00:11.5]} 38. Rxb2 {[%clk
0:00:34.4]} 38... a5 {[%clk 0:00:12]} 39. Ra2 {[%clk 0:00:17.5]} 39... Ra6
{[%clk 0:00:10.8]} 40. Ra4 {[%clk 0:00:18]} 40... Kf6 {[%clk 0:00:11.5]} 41. f4
{[%clk 0:00:18.5]} 41... Kf5 {[%clk 0:00:07.3]} 42. Kf3 {[%clk 0:00:18.7]} 42...
Ra8 {[%clk 0:00:08.1]} 43. h3 {[%clk 0:00:18]} 43... Ra7 {[%clk 0:00:08.3]} 44.
Ke3 {[%clk 0:00:16.6]} 44... Ra8 {[%clk 0:00:08.8]} 45. Kf3 {[%clk 0:00:16.7]}
45... Ra6 {[%clk 0:00:09.1]} 46. Ke3 {[%clk 0:00:16.7]} 46... Re6+ {[%clk
0:00:07.5]} 47. Kd3 {[%clk 0:00:13.8]} 47... Kxf4 {[%clk 0:00:05.8]} 48. Rxa5
{[%clk 0:00:13.7]} 48... Re3+ {[%clk 0:00:05.8]} 49. Kd2 {[%clk 0:00:13.7]}
49... Re5 {[%clk 0:00:06.1]} 50. Ra7 {[%clk 0:00:11]} 50... Rf5 {[%clk
0:00:06.1]} 51. h5 {[%clk 0:00:06.8]} 51... gxh5 {[%clk 0:00:07]} 52. Kd3 {[%clk
0:00:07]} 52... h4 {[%clk 0:00:07.2]} 53. Rd7 {[%clk 0:00:06.1]} 53... f6 {[%clk
0:00:03.5]} 54. Rd6 {[%clk 0:00:05.6]} 54... Kg3 {[%clk 0:00:02.9]} 55. Rd5
{[%clk 0:00:05.4]} 55... Rg5 {[%clk 0:00:03.4]} 56. Ke3 {[%clk 0:00:03.9]} 56...
Kxh3 {[%clk 0:00:03.3]} 57. Kf3 {[%clk 0:00:04.1]} 57... Rg3+ {[%clk 0:00:02.9]}
58. Kf2 {[%clk 0:00:03.8]} 58... Rg5 {[%clk 0:00:02.5]} 59. Kf3 {[%clk
0:00:04.3]} 59... Rg3+ {[%clk 0:00:02.3]} 60. Kf2 {[%clk 0:00:04.2]} 60... Rg5
{[%clk 0:00:02.8]} 61. Kf3 {[%clk 0:00:04.1]} 1/2-1/2